Cogmind - Beta 10.2 @@@ ROGUE MODE // 2021.03.25 @ 15:53:35 Player: ChromeKnight Result: Destroyed by G-47 Trooper with Particle Gun Performance ------------- Evolutions (0) 0 Regions Visited (1) 200 Robots Destroyed (4) 20 Value Destroyed (64) 64 Prototype IDs (0) 0 Alien Tech Used (0) 0 Bonus (0) 0 TOTAL SCORE: 284 Bonus ------- None Cogmind --------- Core Integrity 0/250 Matter 300/300 Energy 100/100 System Corruption 0% Temperature Cool (9) Movement Core (300) Ox5 Location -10/Materials Parts ------- > --- POWER (1) -------- (None) > --- PROPULSION (2) --- (None) > --- UTILITY (2) ------ Large Storage Unit > --- WEAPON (2) ------- (None) > --- INVENTORY (10) --- (None) Peak State ------------ > --- POWER ------------ Light Ion Engine > --- PROPULSION ------- Wheel Wheel > --- UTILITY ---------- Small Storage Unit Large Storage Unit > --- WEAPON ----------- EM Pulse Gun Small Laser > --- INVENTORY -------- Assault Rifle [Rating: 7] Favorites ----------- Power Light Ion Engine Engine Light Ion Engine Propulsion Wheel Wheel Wheel Utility Large Storage Unit Device Heat Sink Storage Large Storage Unit Weapon Small Laser Energy Gun Small Laser Ballistic Gun Assault Rifle Build | -11 -10 ------- Run | Scr Mat Slots Evolved . | . . Power . | . . Propulsion . | . . Utility . | . . Weapon . | . . Parts Attached 9 | 6 3 Power 1 | 1 . Engine 1 | 1 . Core . | . . Reactor . | . . Propulsion 2 | 2 . Treads . | . . Leg . | . . Wheel 2 | 2 . Hover . | . . Flight . | . . Utility 3 | 1 2 Device 1 | . 1 Storage 2 | 1 1 Processor . | . . Hackware . | . . Protection . | . . Artifact . | . . Weapon 3 | 2 1 Energy Gun 2 | 2 . Energy Cannon . | . . Ballistic Gun 1 | . 1 Ballistic Cannon . | . . Launcher . | . . Special Weapon . | . . Impact Weapon . | . . Slashing Weapon . | . . Piercing Weapon . | . . Special Melee Weapon . | . . Unidentified Prototypes . | . . Parts Lost 7 | . 7 Power 1 | . 1 Propulsion 2 | . 2 Utility 1 | . 1 Weapon 3 | . 3 Highest Loss Streak 7 | . 7 Average Slot Usage (%) 71 | . 71 Engine 10 | . 10 Wheel 22 | . 22 Device 3 | . 3 Storage 14 | . 14 Energy Gun 19 | . 19 Ballistic Gun 2 | . 2 Naked Turns . | . . Heaviest Build 22 | 10 22 Greatest Support 20 | 20 20 Greatest Overweight (x) 5 | 1 5 Average Overweight (x) . | . . Largest Inventory Capacity 12 | 6 12 Average Capacity 8 | 5 9 Most Carried 1 | 1 1 Average Carried . | . . Final Capacity 10 | 6 10 Final Carried 1 | 1 . Class Distribution -------------------- 100% | Mutant Dominant Class ---------------- Mutant | -10/Materials Resources | -11 -10 ----------- Run | Scr Mat Matter Collected 277 | 260 17 Remotely . | . . Salvage Created 105 | . 105 Parts 7 | . 7 Haulers Intercepted . | . . Recyclers Shooed . | . . Parts Field Recycled . | . . Retrieved Matter . | . . Parts Self-Destructed . | . . Prevented . | . . Kills | -11 -10 ------- Run | Scr Mat Combat Hostiles Destroyed 4 | . 4 Guns 4 | . 4 Classes Destroyed 2 | . 2 Swarmer 3 | . 3 Grunt 1 | . 1 Best Kill Streak 2 | . 2 Combat Bots Only 2 | . 2 Max Kills in Single Turn 1 | . 1 Gunslinging . | . . Exploded . | . . Melee . | . . Uniques/NPCs Destroyed . | . . Combat | -11 -10 -------- Run | Scr Mat Damage Taken 691 | . 691 Core 255 | . 255 Absorbed by Shields . | . . Core Remaining (%) 100 | 100 . Volleys Fired 22 | . 22 Largest 2 | . 2 Hottest 80 | . 80 Shots Fired 28 | . 28 Gun 28 | . 28 Cannon . | . . Launcher . | . . Special . | . . Kinetic 13 | . 13 Thermal 9 | . 9 Explosive . | . . Electromagnetic 6 | . 6 Robot Hit Streak 4 | . 4 Robot Miss Streak 3 | . 3 Penetration Max . | . . Secondary Targets . | . . Shots Hit Robots 15 | . 15 Core Hits 9 | . 9 Critical Hits . | . . Critical Kills . | . . Critical Parts Destroyed . | . . Melee Attacks . | . . Impact . | . . Slashing . | . . Piercing . | . . Sneak Attacks . | . . Combat Hostiles . | . . Follow-up Attacks . | . . Damage Inflicted 243 | . 243 Guns 232 | . 232 Cannons . | . . Explosions . | . . Melee . | . . Ramming 11 | . 11 Kinetic 145 | . 145 Thermal 45 | . 45 Explosive . | . . Electromagnetic 42 | . 42 Impact . | . . Slashing . | . . Piercing . | . . Highest Corruption . | . . Average Corruption . | . . Corruption Purged . | . . Overload Shots . | . . Overflow Damage . | . . Projectiles . | . . Explosions . | . . Melee . | . . Knockbacks . | . . Impact . | . . Kinetic . | . . Secondary . | . . Self-Inflicted Damage 3 | . 3 Shots . | . . Rammed 11 | . 11 Targets Rammed 11 | . 11 Kicked . | . . Crushed . | . . Highest Temperature 48 | . 48 Average Temperature 14 | . 14 Received Heat Transfer 291 | . 291 Siege Activations . | . . Robots Corrupted . | . . Combat Hostiles . | . . Parts Fried . | . . Impact Corruptions . | . . Robots Melted . | . . Combat Hostiles . | . . Parts Melted . | . . Heat Transferred 100 | . 100 Parts Sabotaged . | . . Parts Stolen . | . . Parts Stripped . | . . Power Chain Reactions . | . . Missiles Intercepted . | . . Alert | -11 -10 ------- Run | Scr Mat Peak Influence 95 | . 95 Initial . | . . Average 28 | . 35 Maximum Alert Level . | . . Low Security (%) 100 | 100 100 Level 1 . | . . Level 2 . | . . Level 3 . | . . Level 4 . | . . Level 5 . | . . High Security . | . . Max Security . | . . Squads Dispatched . | . . Investigation . | . . Extermination . | . . Reinforcement . | . . Assault . | . . Garrison . | . . Intercept . | . . Construction Impeded . | . . Haulers Reinforced . | . . Stealth | -11 -10 --------- Run | Scr Mat Distress Signals . | . . Communications Jammed . | . . Distress Signals . | . . Times Spotted 6 | . 6 Peak Tracking Total 4 | . 4 Tactical Retreats 1 | . 1 Traps | -11 -10 ------- Run | Scr Mat Traps Triggered . | . . Indirectly . | . . Trap Hack Attempts . | . . Triggered . | . . Disarmed . | . . Reprogrammed . | . . Reused . | . . Traps Extracted . | . . Installed . | . . Triggered . | . . Machines | -11 -10 ---------- Run | Scr Mat Machines Disabled . | . . Max in Single Turn . | . . Machines Sabotaged . | . . Garrisons Compromised . | . . Overloaded Fab Kills . | . . Fab Network Shutdowns . | . . Hacking | -11 -10 --------- Run | Scr Mat Machines Accessed 1 | . 1 Terminals 1 | . 1 Fabricators . | . . Repair Stations . | . . Recycling Units . | . . Scanalyzers . | . . Garrison Access . | . . Total Hacks 3 | . 3 Successful 2 | . 2 Failed 1 | . 1 Catastrophic . | . . Database Lockouts . | . . Manual . | . . Terminals 3 | . 3 Fabricators . | . . Repair Stations . | . . Recycling Units . | . . Scanalyzers . | . . Garrison Access . | . . Terminal Hacks 2 | . 2 Robot Analysis 1 | . 1 Branch Access Points 1 | . 1 Fabricator Hacks . | . . Repair Station Hacks . | . . Recycling Unit Hacks . | . . Scanalyzer . | . . Garrison Access Hacks . | . . Unauthorized Hacks . | . . Terminals . | . . Fabricators . | . . Repair Stations . | . . Recycling Units . | . . Scanalyzers . | . . Garrison Access . | . . Data Cores Recovered . | . . Used . | . . Hacking Detections 1 | . 1 Full Trace Events . | . . Feedback Events . | . . Feedback Blocked . | . . Robot Schematics Acquired . | . . Robots Built . | . . Matter . | . . Time . | . . Total Robot Build Rating . | . . Part Schematics Acquired . | . . Parts Built . | . . Matter . | . . Time . | . . Total Part Build Rating . | . . Parts Repaired . | . . Time . | . . Parts Recycled . | . . Recycled Matter . | . . Retrieved Matter . | . . Retrieved Components . | . . Parts Scanalyzed . | . . Part Schematics Acquired . | . . Parts Damaged . | . . Bothacking | -11 -10 ------------ Run | Scr Mat Used RIF Installer . | . . Robots Hacked . | . . Non-combat . | . . Combat . | . . Robot Hacks Applied . | . . Relay Couplers Released . | . . Robots Rewired . | . . Allies Hacked . | . . Hacks Repelled . | . . Allies | -11 -10 -------- Run | Scr Mat Total Allies . | . . Largest Group . | . . Highest-Rated Group . | . . Highest-Rated Ally . | . . Total Orders . | . . Ally Attacks . | . . Total Damage . | . . Kills . | . . Allies Corrupted . | . . Allies Melted . | . . Intel | -11 -10 ------- Run | Scr Mat Robot Analysis Total 1 | . 1 Derelict Logs Recovered . | . . Drone Launches . | . . Drone Recoveries . | . . Exploration | -11 -10 ------------- Run | Scr Mat Turns Passed 264 | 57 207 Spaces Moved 177 | 59 118 Core 8 | 6 2 Treads . | . . Legs . | . . Wheels 169 | 53 116 Hover . | . . Flight . | . . Fastest Speed 50 | 50 80 Average Speed 86 | 79 89 Slowest Speed 300 | 100 300 Overloaded Moves . | . . Propulsion Burnouts . | . . Robots Hopped . | . . Cave-ins Triggered . | . . Exploration Rate (%) 13 | 3 23 Regions Visited 1 Branch Regions . Pre-discovered Areas . | . . Known Exits Taken . | . . Unknown Exits Taken 1 | 1 . Scrap Searched . | . . Spaces Dug . | . . Terrain Destroyed . | . . Melee . | . . Projectile . | . . AOE . | . . Terrain Rammed . | . . Walls Destroyed . | . . Machines Disabled . | . . Actions | -11 -10 --------- Run | Scr Mat Total 239 | 65 174 Wait 19 | . 19 Move 176 | 58 118 Hop . | . . Pick Up 1 | 1 . Fast Attach 8 | 6 2 Attach 1 | . 1 Detach . | . . Swap . | . . Drop 1 | . 1 Fire 22 | . 22 Melee . | . . Ram 11 | . 11 Kick . | . . Crush . | . . Escape Stasis . | . . Rewire . | . . Trap . | . . Miscellaneous . | . . Route ------- -11/Scrapyard -10/Materials (discovered 2 exits: Min x2) History --------- Turn | Location | Event 28 | -11/Scrapyard | Discovered new exit (range 15) 58 | -11/Scrapyard | Entered Materials 124 | -10/Materials | Identified exit to Mines 246 | -10/Materials | Core integrity fell below 50% 258 | -10/Materials | Core integrity fell below 20% 265 | -10/Materials | Destroyed by G-47 Trooper with Particle Gun Last Messages --------------- 00168_ G-34 Mercenary destroyed. 00185_ Acquired Heat Sink. 00192_ R-06 Scavenger collects Ion Engine. 00196_ R-06 Scavenger collects Aluminum Leg. 00198_ EM Pulse Gun destroyed. 00200_ Wheel destroyed. 00201_ Slammed into R-06 Scavenger. 00203_ S-10 Pest destroyed. 00204_ Lgt. Ion Engine destroyed. 00205_ Sml. Laser destroyed. 00224_ S-10 Pest destroyed. 00230_ R-06 Scavenger collects Lgt. Ion Engine. 00231_ Wheel destroyed. 00233_ Assault Rifle destroyed. 00233_ R-06 Scavenger collects Lgt. Assault Rifle. 00237_ Acquired 17 matter. 00239_ Heat Sink destroyed. 00240_ Slammed into G-47 Trooper. 00246_ Destabilizing: Core damaged (-5). 00249_ Slammed into G-47 Trooper. Map ----- +----------------------------------------------------+ | | | | | | | | | | | | | | | | | | | | | | | | | | | | | | | | | ??????????????????????????????????????????????#### | | ??????????????????????????????????????????????# | | ??????????????????????????????????????????????# | | ??????????????????????????????????????????????# | | ???????????????????????????????###########????# | | ?????????????????############### #????# | | ?????????????????# # # "" #????# | | ?????????????????# # # "Y """ ###### | | ?????????????????# # # "" """ # ##+# | | ?????????????????# g@%/r + """ # T | | ?????????????????# %%# # # "" | | ?????????????????# # # # #### | | ?????????????????# # # ## ##??# | | ?????????????????# % # #######+#### #???# | | ?????????????????######+#### ####### #### #???# | | ??????????????????????# #??# #!!! ## #???? | | ??????????????????????#%#??# #!!! + #???? | | ??????????????#########%#### #!! #######+###??? | | ??????? # # #??? | | ??????? # #### + # """"""" #??? | | ??????? #+#####+####### """"""" #??? | | ????????#### ?# ## """"""" #??? | | ???????????# ?# """ """ #? """"""" #??? | | ???????????# ??# """ """ #??""""""" #??? | | ???????????+ ??# """ """ #????? ? #??? | | ???????????# ???# #?????????##??? | | ???????????### ???##############?????????????? | | ?????????????# ###???????????????????????????????? | | ?????????????# ??????????????????????????????????? | | ?????????????#???????????????????????????????????? | | ?????????????????????????????????????????????????? | | ?????????????????????????????????????????????????? | | ?????????????????????????????????????????????????? | | ?????????????????????????????????????????????????? | +----------------------------------------------------+ Best States ------------- Heat Dissipation 35 Energy Generation 10 Energy Capacity 125 Matter Stores 300 Matter Capacity 300 Sight Range 16 Terrain Scan Density 10 Evasion (%) 44 Item Schematics ----------------- None Robot Schematics ------------------ None Fabricated ------------ Nothing Alien Tech Used ----------------- None Achievements -------------- None Challenges ------------ None Game ------ Seed DisruptorHeavyDeconstructor Manual? 0 Play Time 00:03:23 Cumulative 90.8 hours Start 2021.03.25 @ 15:51:44 End 2021.03.25 @ 15:53:35 Sessions 1 Manual Loads 0 Difficulty Rogue Special Mode None Game No. 237 Rogue 84 Adventurer 148 Explorer 5 Win Type - Total 1 Types 1/0/0/0/0/0/0/0/0 Lore% 56 Gallery% 65 Achievement% 52 Wizard Run 0 Options --------- ASCII 0 Keyboard 0 Movement Arrows Keybinds 0 Fullscreen 1 Font 14/X11 Map View 84x54 Tactical HUD 1 Map Filters NONE Filters NONE Steam 1 RUN: 12323c98-9b2e-4e5e-aa39-2035e553dab7